Cogmind - Beta 13 @@@ ROGUE MODE // 2024.07.29 @ 14:54:33 Player: Sgt. SmokeWeed Result: Destroyed by H-66 Slayer with Gauss Rifle Performance ------------- Evolutions (4) 2000 Regions Visited (10) 2000 Robots Destroyed (86) 430 Value Destroyed (2474) 2474 Prototype IDs (9) 180 Alien Tech Used (0) 0 Bonus (234) 234 TOTAL SCORE: 7318 Bonus ------- Follower Combat Kills 234 Cogmind --------- Core Integrity 0/850 Matter 136/300 Energy 100/100 System Corruption 21% Temperature Cool (0) Movement Core (50) Location -6/Factory Parts ------- > --- POWER (1) -------- (None) > --- PROPULSION (2) --- (None) > --- UTILITY (10) ----- (None) > --- WEAPON (2) ------- (None) > --- INVENTORY (5) ---- (None) Peak State ------------ > --- POWER ------------ Cooled Ion Engine > --- PROPULSION ------- Light Treads Light Treads > --- UTILITY ---------- Improved Heat Sink Improved Heat Sink Improved Sensor Array Improved Signal Interpreter Matter Filter Improved Particle Charger EM Disruption Field Hacking Suite > --- WEAPON ----------- Shock Bomb Launcher Great Maul > --- INVENTORY -------- Light Treads Advanced Beam Rifle Shock Bomb Launcher Shock Bomb Launcher Shock Bomb Launcher [Rating: 41] Favorites ----------- Power Improved Ion Engine Engine Improved Ion Engine Propulsion Light Treads Treads Light Treads Leg Aluminum Leg Hover Unit Improved Hover Unit Flight Unit Improved VTOL Module Utility Hacking Suite Device Improved Heat Sink Processor Improved Signal Interpreter Hackware Hacking Suite Protection Light Armor Plating Weapon Advanced Beam Rifle Energy Gun Advanced Beam Rifle Energy Cannon Advanced Beam Cannon Ballistic Gun Heavy Assault Rifle Ballistic Cannon Improved Light Cannon Launcher Shock Bomb Launcher Impact Weapon Hammer Slashing Weapon Katana Build | -11 -10 -10 -9 -9 -9 -8 -8 -8 -8 -6 ------- Run | Yrd Mat Min Mat Min Exi Min Mat Sto Rec Fac Slots Evolved 8 | . . . 2 . . . 2 . . 4 Power . | . . . . . . . . . . . Propulsion . | . . . . . . . . . . . Utility 8 | . . . 2 . . . 2 . . 4 Weapon . | . . . . . . . . . . . Parts Attached 85 | 5 4 6 18 . 1 1 . 32 3 15 Power 11 | 1 1 1 4 . . . . 3 . 1 Engine 11 | 1 1 1 4 . . . . 3 . 1 Core . | . . . . . . . . . . . Reactor . | . . . . . . . . . . . Propulsion 27 | 2 2 2 8 . . . . 9 2 2 Treads 19 | 2 . 2 4 . . . . 7 2 2 Leg 2 | . 2 . . . . . . . . . Wheel . | . . . . . . . . . . . Hover 4 | . . . 4 . . . . . . . Flight 2 | . . . . . . . . 2 . . Utility 16 | . . 2 2 . . . . 9 . 3 Device 7 | . . . . . . . . 4 . 3 Storage . | . . . . . . . . . . . Processor 1 | . . . . . . . . 1 . . Hackware 1 | . . . 1 . . . . . . . Protection 7 | . . 2 1 . . . . 4 . . Artifact . | . . . . . . . . . . . Weapon 31 | 2 1 1 4 . 1 1 . 11 1 9 Energy Gun 9 | . . . . . . . . 6 . 3 Energy Cannon 3 | . . . . . . . . 2 . 1 Ballistic Gun 9 | 2 . 1 3 . 1 . . 2 . . Ballistic Cannon 2 | . . . 1 . . . . . . 1 Launcher 5 | . . . . . . . . 1 . 4 Special Weapon . | . . . . . . . . . . . Impact Weapon 2 | . 1 . . . . . . . 1 . Slashing Weapon 1 | . . . . . . 1 . . . . Piercing Weapon . | . . . . . . . . . . . Special Melee Weapon . | . . . . . . . . . . . Unidentified Prototypes 9 | . . . . . . . . 8 . 1 Parts Lost 38 | . 2 . 12 . . . . 7 . 17 Power 5 | . 1 . 3 . . . . . . 1 Propulsion 11 | . 1 . 5 . . . . 1 . 4 Utility 11 | . . . 2 . . . . 4 . 5 Weapon 11 | . . . 2 . . . . 2 . 7 Highest Loss Streak 7 | . 1 . 5 . . . . 3 . 7 To Critical Strikes . | . . . . . . . . . . . Average Slot Usage (%) 74 | . 66 97 61 77 77 77 63 77 100 62 Engine 9 | . 12 14 9 11 11 11 9 9 9 5 Treads 18 | . 21 25 15 22 22 22 18 17 18 11 Device 9 | . . . . . . . . 14 36 21 Processor 1 | . . . . . . . . 1 9 5 Hackware 6 | . . . 1 11 11 11 9 9 9 5 Protection 7 | . . 25 11 11 11 11 9 7 . . Energy Gun 3 | . . . . . . . . 12 14 2 Ballistic Gun 8 | . 17 14 5 22 22 13 9 1 . . Impact Weapon 3 | . 10 14 8 . . . . . 3 5 Slashing Weapon 1 | . . . . . . 8 9 2 . . Naked Turns 48 | . . . 2 . . . . . . 46 Heaviest Build 29 | 7 8 20 21 16 16 15 14 21 20 29 Greatest Support 40 | 40 40 40 40 40 40 40 40 40 40 40 Greatest Overweight (x) 3 | 2 . 1 1 . . . . 3 . 1 Average Overweight (x) . | . . . . . . . . . . . Largest Inventory Capacity 5 | 5 5 5 5 5 5 5 5 5 5 5 Average Capacity 5 | 5 5 5 5 5 5 5 5 5 5 5 Most Carried 5 | . 1 4 4 4 4 5 5 5 5 5 Average Carried 3 | . . 2 3 4 4 4 5 4 4 4 Final Capacity 5 | 5 5 5 5 5 5 5 5 5 5 5 Final Carried 5 | . 1 4 4 4 4 5 5 5 5 . Class Distribution -------------------- 72% | Scavenger-Mutant 17% | Mutant 10% | Commander-Mutant Dominant Class ---------------- Mutant | -10/Materials Scavenger-Mutant | -10/Mines Scavenger-Mutant | -9/Materials Scavenger-Mutant | -9/Mines Commander-Mutant | -9/Exiles Commander-Mutant | -8/Mines Scavenger-Mutant | -8/Materials Scavenger-Mutant | -8/Storage Scavenger-Mutant | -8/Recycling Scavenger-Mutant | -6/Factory Resources | -11 -10 -10 -9 -9 -9 -8 -8 -8 -8 -6 ----------- Run | Yrd Mat Min Mat Min Exi Min Mat Sto Rec Fac Matter Collected 1278 | 240 62 93 233 142 . 81 . 344 10 73 Remotely . | . . . . . . . . . . . Salvage Created 3272 | . 354 129 858 222 . . . 1394 73 242 Parts 134 | . 8 . 31 14 . . . 64 4 13 Haulers Intercepted 3 | . . . 1 . . . . 2 . . Recyclers Shooed 5 | . 1 . . . . . . 1 . 3 Parts Field Recycled . | . . . . . . . . . . . Retrieved Matter . | . . . . . . . . . . . Parts Self-Destructed . | . . . . . . . . . . . Prevented . | . . . . . . . . . . . Kills | -11 -10 -10 -9 -9 -9 -8 -8 -8 -8 -6 ------- Run | Yrd Mat Min Mat Min Exi Min Mat Sto Rec Fac Combat Hostiles Destroyed 54 | . 8 1 16 5 . . . 21 . 3 Melee 24 | . 6 1 8 . . . . 8 . 1 Guns 21 | . . . 3 5 . . . 13 . . Cannons 1 | . . . . . . . . . . 1 Classes Destroyed 15 | . 4 1 5 2 . . . 2 . 1 Worker 9 | . . . . . . . . 3 . 6 Builder 3 | . . . 1 1 . . . . 1 . Tunneler 1 | . . . . 1 . . . . . . Hauler 3 | . . . 1 . . . . 2 . . Recycler 6 | . 1 1 2 . . . . 1 1 . Mechanic 1 | . . . 1 . . . . . . . Operator 3 | . . . 2 . . . . 1 . . Watcher 7 | . 1 . 2 . . . . 1 . 3 Swarmer 6 | . 2 . 4 . . . . . . . Grunt 31 | . 6 . 8 4 . . . 13 . . Brawler 1 | . . . . 1 . . . . . . Sentry 11 | . . . 4 . . . . 7 . . Hunter 1 | . . . . . . . . 1 . . Programmer 3 | . . . . . . . . . . 3 Assembled 1 | . . 1 . . . . . . . . Best Kill Streak 5 | . 5 1 4 4 . . . 4 1 4 Combat Bots Only 4 | . 4 1 4 2 . . . 4 . 1 Max Kills in Single Turn 4 | . 1 1 1 1 . . . 1 1 4 Gunslinging . | . . . . . . . . . . . Exploded . | . . . . . . . . . . . Melee 1 | . 1 1 1 . . . . 1 . 1 Uniques/NPCs Destroyed . | . . . . . . . . . . . Combat | -11 -10 -10 -9 -9 -9 -8 -8 -8 -8 -6 -------- Run | Yrd Mat Min Mat Min Exi Min Mat Sto Rec Fac Hostile Shots Fired 545 | . 90 18 131 17 . . . 123 . 166 Missed 163 | . 32 4 33 6 . . . 39 . 49 Damage Taken 5795 | . 551 210 1063 119 . 19 . 1271 . 2562 Core 1574 | . 157 45 228 31 . . . 246 . 867 Absorbed by Shields . | . . . . . . . . . . . Ignored by Resistances 147 | . . . . . . . . . . 147 Core Remaining (%) 52 | 100 . 19 . . . 35 . . 55 . Volleys Fired 140 | . 7 11 19 25 . . . 51 . 27 Largest 2 | . 2 1 2 2 . . . 2 . 2 Hottest 122 | . 40 23 43 46 . . . 122 . 72 Shots Fired 229 | . 12 11 35 50 . . . 91 . 30 Gun 204 | . 12 11 35 50 . . . 89 . 7 Cannon 10 | . . . . . . . . . . 10 Launcher 15 | . . . . . . . . 2 . 13 Special . | . . . . . . . . . . . Kinetic 131 | . 12 11 35 50 . . . 13 . 10 Thermal 83 | . . . . . . . . 76 . 7 Explosive . | . . . . . . . . . . . Electromagnetic 15 | . . . . . . . . 2 . 13 Robot Hit Streak 10 | . 3 3 7 9 . . . 10 . 5 Robot Miss Streak 6 | . 6 2 2 3 . . . 3 . 2 Penetration Max . | . . . . . . . . . . . Secondary Targets . | . . . . . . . . . . . Shots Hit Robots 250 | . 24 12 75 22 . . . 88 1 28 Core Hits 97 | . 6 1 19 12 . . . 43 1 15 Critical Kills 5 | . 2 . 3 . . . . . . . Critical Parts Destroyed 14 | . 3 1 9 . . . . . . 1 Critical Strikes 26 | . 5 1 12 . . . . 6 . 2 Burn 3 | . . . . . . . . 3 . . Destroy 1 | . . . 1 . . . . . . . Blast 1 | . . . . . . . . . . 1 Smash 18 | . 5 1 11 . . . . . . 1 Sever 3 | . . . . . . . . 3 . . Melee Attacks 200 | . 28 5 73 . . . . 45 1 48 Impact 155 | . 28 5 73 . . . . . 1 48 Slashing 45 | . . . . . . . . 45 . . Piercing . | . . . . . . . . . . . Sneak Attacks 17 | . 2 1 6 . . . . 6 1 1 Combat Hostiles . | . . . . . . . . . . . Follow-up Attacks . | . . . . . . . . . . . Damage Inflicted 7403 | . 636 361 1696 384 . . . 2351 88 1887 Guns 2064 | . 37 106 285 379 . . . 1137 . 120 Cannons 235 | . . . . . . . . . . 235 Explosions 1026 | . . . . . . . . 54 . 972 Melee 4039 | . 599 255 1406 . . . . 1148 71 560 Ramming 39 | . . . 5 5 . . . 12 17 . Kinetic 1192 | . 37 106 285 379 . . . 150 . 235 Thermal 1573 | . . . . . . . . 987 . 586 Explosive 28 | . . . . . . . . . . 28 Electromagnetic 532 | . . . . . . . . 54 . 478 Impact 2891 | . 599 255 1406 . . . . . 71 560 Slashing 1148 | . . . . . . . . 1148 . . Piercing . | . . . . . . . . . . . Highest Corruption 21 | . . . 1 1 1 1 . 3 3 21 Average Corruption 2 | . . . 1 1 1 1 . 2 3 7 Corruption Purged . | . . . . . . . . . . . Corruption Blocked . | . . . . . . . . . . . Effects 41 | . . . 1 5 3 2 . 2 12 16 Message Errors 12 | . . . . . 1 1 . . 5 5 Matter Fused 9 | . . . . 1 . 1 . . 1 6 Heat Flow Errors 5 | . . . . 1 1 . . 1 1 1 Energy Discharges 4 | . . . . 2 . . . . 2 . Parts Fused 1 | . . . . 1 . . . . . . Data Loss (minor) 6 | . . . 1 . 1 . . 1 2 1 Misfires 1 | . . . . . . . . . . 1 Alerts 1 | . . . . . . . . . 1 . Weapon Failures 2 | . . . . . . . . . . 2 Overload Shots . | . . . . . . . . . . . Overflow Damage 1331 | . 92 141 449 . . . . 57 41 551 Projectiles 9 | . . . . . . . . . . 9 Explosions 320 | . . . . . . . . . . 320 Melee 1002 | . 92 141 449 . . . . 57 41 222 Knockbacks 22 | . 3 1 8 . . . . 1 2 7 Impact 18 | . 3 1 8 . . . . 1 2 3 Kinetic 4 | . . . . . . . . . . 4 Secondary . | . . . . . . . . . . . Self-Inflicted Damage 159 | . . . 1 . . . . . . 158 Shots 4 | . . . . . . . . . . 4 Rammed 14 | . . . 3 2 . . . 6 3 . Targets Rammed 15 | . . . 3 2 . . . 6 4 . Kicked . | . . . . . . . . . . . Crushed 1 | . . . . . . . . . 1 . Highest Temperature 214 | . . . 20 169 195 . . 154 214 99 Average Temperature 45 | . . . 8 47 106 . . 33 108 36 Received Heat Transfer 1278 | . 150 . 387 66 . . . 675 . . Siege Activations . | . . . . . . . . . . . Robots Corrupted 1 | . . . . . . . . . . 1 Combat Hostiles 1 | . . . . . . . . . . 1 Parts Fried 26 | . 6 . 16 . . . . . . 4 Impact Corruptions 46 | . 5 9 22 . . . . . 1 9 Robots Melted . | . . . . . . . . . . . Combat Hostiles . | . . . . . . . . . . . Parts Melted 4 | . . . . . . . . 4 . . Heat Transferred 2620 | . . . . . . . . 1998 . 622 Parts Sabotaged . | . . . . . . . . . . . Parts Stolen . | . . . . . . . . . . . Parts Stripped . | . . . . . . . . . . . Power Chain Reactions 1 | . . . . . . . . . . 1 Alert | -11 -10 -10 -9 -9 -9 -8 -8 -8 -8 -6 ------- Run | Yrd Mat Min Mat Min Exi Min Mat Sto Rec Fac Peak Influence 304 | . 252 107 267 155 . 36 13 304 111 215 Initial 97 | . . 97 . 93 . . 13 5 78 18 Average 93 | . 112 100 113 78 . 1 13 181 88 30 Maximum Alert Level 1 | . 1 . 1 . . . . 1 . 1 Low Security (%) 85 | 100 84 100 71 100 . 100 100 55 100 99 Level 1 14 | . 15 . 28 . . . . 44 . . Level 2 . | . . . . . . . . . . . Level 3 . | . . . . . . . . . . . Level 4 . | . . . . . . . . . . . Level 5 . | . . . . . . . . . . . High Security . | . . . . . . . . . . . Max Security . | . . . . . . . . . . . Squads Dispatched 19 | . 2 . 5 . . 1 . 7 . 4 Investigation 4 | . 1 . 1 . . 1 . 1 . . Extermination 3 | . . . . . . . . . . 3 Reinforcement 7 | . 1 . 4 . . . . 1 . 1 Assault 2 | . . . . . . . . 2 . . Garrison 3 | . . . . . . . . 3 . . Intercept . | . . . . . . . . . . . Searches Triggered . | . . . . . . . . . . . Construction Impeded 1 | . . . . . . . . . . 1 Haulers Reinforced . | . . . . . . . . . . . Active Scanning Responses . | . . . . . . . . . . . Cargo Convoy Interrupts . | . . . . . . . . . . . Stealth | -11 -10 -10 -9 -9 -9 -8 -8 -8 -8 -6 --------- Run | Yrd Mat Min Mat Min Exi Min Mat Sto Rec Fac Distress Signals 10 | . 1 . 3 . . . . 5 . 1 Communications Jammed . | . . . . . . . . . . . Distress Signals . | . . . . . . . . . . . Times Spotted 95 | . 16 1 32 7 . 1 . 28 1 9 Peak Tracking Total 6 | . 6 1 5 3 . 1 . 4 1 4 Tactical Retreats 2 | . 1 . . . . . . . . 1 Traps | -11 -10 -10 -9 -9 -9 -8 -8 -8 -8 -6 ------- Run | Yrd Mat Min Mat Min Exi Min Mat Sto Rec Fac Traps Triggered 7 | . 2 . 1 . . . . 2 . 2 Indirectly . | . . . . . . . . . . . Trap Hack Attempts . | . . . . . . . . . . . Triggered . | . . . . . . . . . . . Disarmed . | . . . . . . . . . . . Reprogrammed . | . . . . . . . . . . . Reused . | . . . . . . . . . . . Traps Extracted . | . . . . . . . . . . . Installed . | . . . . . . . . . . . Triggered . | . . . . . . . . . . . Machines | -11 -10 -10 -9 -9 -9 -8 -8 -8 -8 -6 ---------- Run | Yrd Mat Min Mat Min Exi Min Mat Sto Rec Fac Machines Disabled 13 | . . . . . . . . 4 . 9 Max in Single Turn 4 | . . . . . . . . 1 . 4 Garrison Access 1 | . . . . . . . . 1 . . Machines Repaired . | . . . . . . . . . . . Machines Dismantled . | . . . . . . . . . . . Machines Sabotaged . | . . . . . . . . . . . Overloaded Fab Kills . | . . . . . . . . . . . Hacking | -11 -10 -10 -9 -9 -9 -8 -8 -8 -8 -6 --------- Run | Yrd Mat Min Mat Min Exi Min Mat Sto Rec Fac Machines Accessed 15 | . 1 . 2 . . 1 1 8 1 1 Terminals 14 | . 1 . 2 . . 1 1 7 1 1 Fabricators . | . . . . . . . . . . . Repair Stations . | . . . . . . . . . . . Recycling Units . | . . . . . . . . . . . Scanalyzers . | . . . . . . . . . . . Garrison Access 1 | . . . . . . . . 1 . . Total Hacks 26 | . 2 . 3 . . 2 3 13 1 2 Successful 8 | . . . 1 . . 1 . 5 . 1 Failed 18 | . 2 . 2 . . 1 3 8 1 1 Catastrophic 10 | . 1 . 1 . . 1 1 5 . 1 Database Lockouts . | . . . . . . . . . . . Manual 17 | . 2 . 3 . . 2 . 8 1 1 Terminals 25 | . 2 . 3 . . 2 3 12 1 2 Fabricators . | . . . . . . . . . . . Repair Stations . | . . . . . . . . . . . Recycling Units . | . . . . . . . . . . . Scanalyzers . | . . . . . . . . . . . Garrison Access 1 | . . . . . . . . 1 . . Terminal Hacks 7 | . . . 1 . . 1 . 4 . 1 Robot Analysis 1 | . . . . . . . . . . 1 Open Door 2 | . . . . . . . . 2 . . Level Access Points 1 | . . . . . . . . 1 . . Branch Access Points 2 | . . . 1 . . 1 . . . . Registered Components 1 | . . . . . . . . 1 . . Fabricator Hacks . | . . . . . . . . . . . Repair Station Hacks . | . . . . . . . . . . . Recycling Unit Hacks . | . . . . . . . . . . . Scanalyzer . | . . . . . . . . . . . Garrison Access Hacks 1 | . . . . . . . . 1 . . Seal Access 1 | . . . . . . . . 1 . . Unauthorized Hacks . | . . . . . . . . . . . Terminals . | . . . . . . . . . . . Fabricators . | . . . . . . . . . . . Repair Stations . | . . . . . . . . . . . Recycling Units . | . . . . . . . . . . . Scanalyzers . | . . . . . . . . . . . Garrison Access . | . . . . . . . . . . . Data Cores Recovered . | . . . . . . . . . . . Used . | . . . . . . . . . . . Hacking Detections 10 | . 1 . 1 . . 1 1 5 . 1 Full Trace Events 2 | . . . . . . 1 . 1 . . Feedback Events . | . . . . . . . . . . . Feedback Blocked . | . . . . . . . . . . . Robot Schematics Acquired . | . . . . . . . . . . . Robots Built . | . . . . . . . . . . . Authchips . | . . . . . . . . . . . Time . | . . . . . . . . . . . Total Robot Build Rating . | . . . . . . . . . . . Part Schematics Acquired . | . . . . . . . . . . . Parts Built . | . . . . . . . . . . . Authchips . | . . . . . . . . . . . Time . | . . . . . . . . . . . Total Part Build Rating . | . . . . . . . . . . . Parts Repaired . | . . . . . . . . . . . Time . | . . . . . . . . . . . Parts Recycled . | . . . . . . . . . . . Recycled Matter . | . . . . . . . . . . . Retrieved Matter . | . . . . . . . . . . . Retrieved Components . | . . . . . . . . . . . Parts Scanalyzed . | . . . . . . . . . . . Part Schematics Acquired . | . . . . . . . . . . . Parts Damaged . | . . . . . . . . . . . Bothacking | -11 -10 -10 -9 -9 -9 -8 -8 -8 -8 -6 ------------ Run | Yrd Mat Min Mat Min Exi Min Mat Sto Rec Fac Used RIF Installer . | . . . . . . . . . . . Robots Hacked . | . . . . . . . . . . . Non-combat . | . . . . . . . . . . . Combat . | . . . . . . . . . . . Robot Hacks Applied . | . . . . . . . . . . . Relay Couplers Released . | . . . . . . . . . . . Fabnet Peak Effective % . | . . . . . . . . . . . Robots Rewired 4 | . . . . . 4 . . . . . Allies Hacked . | . . . . . . . . . . . Hacks Repelled . | . . . . . . . . . . . Allies | -11 -10 -10 -9 -9 -9 -8 -8 -8 -8 -6 -------- Run | Yrd Mat Min Mat Min Exi Min Mat Sto Rec Fac Total Allies 11 | . . . . 5 4 . . 2 . . Largest Group 7 | . . . . 5 7 7 4 4 2 2 Highest-Rated Group 91 | . . . . 91 91 85 39 62 62 62 Highest-Rated Ally 31 | . . . . 31 31 21 15 31 31 31 Total Orders . | . . . . . . . . . . . Ally Attacks 62 | . . . . 5 . 11 . 22 9 15 Total Damage 830 | . . . . 82 . 101 . 226 170 251 Kills 9 | . . . . 3 . 1 . 2 3 . Allies Corrupted . | . . . . . . . . . . . Allies Melted 1 | . . . . . . . . . . 1 Intel | -11 -10 -10 -9 -9 -9 -8 -8 -8 -8 -6 ------- Run | Yrd Mat Min Mat Min Exi Min Mat Sto Rec Fac Robot Analysis Total 1 | . . . . . . . . . . 1 Derelict Logs Recovered 2 | . . 1 . 1 . . . . . . Drone Launches . | . . . . . . . . . . . Drone Recoveries . | . . . . . . . . . . . Exploration | -11 -10 -10 -9 -9 -9 -8 -8 -8 -8 -6 ------------- Run | Yrd Mat Min Mat Min Exi Min Mat Sto Rec Fac Turns Passed 7082 | 52 347 403 962 1171 490 452 39 1414 472 1280 Spaces Moved 3486 | 32 124 209 445 418 294 282 25 673 286 698 Core 139 | 7 . 1 42 . . . . . . 89 Treads 3127 | 25 97 198 227 418 294 282 25 666 286 609 Legs 37 | . 27 10 . . . . . . . . Wheels . | . . . . . . . . . . . Hover 176 | . . . 176 . . . . . . . Flight 7 | . . . . . . . . 7 . . Fastest Speed 50 | 50 120 100 50 160 160 160 160 102 160 50 Average Speed 150 | 142 151 157 110 160 160 160 160 159 160 147 Slowest Speed 245 | 160 160 160 160 160 160 160 160 245 160 240 Overloaded Moves . | . . . . . . . . . . . Propulsion Burnouts . | . . . . . . . . . . . Robots Hopped . | . . . . . . . . . . . Cave-ins Triggered 2 | . . . . . . . . . . 2 Exploration Rate (%) 43 | 3 45 43 36 61 75 64 5 70 60 15 Regions Visited 10 Branch Regions 6 Pre-discovered Areas 2 | . . 1 . 1 . . . . . . Known Exits Taken 3 | . . . 1 . . . . 1 1 . Unknown Exits Taken 7 | 1 1 1 . 1 1 1 1 . . . Scrap Searched 3 | . . 1 . 1 . 1 . . . . Spaces Dug 48 | . . . . . . . . . . 48 Terrain Destroyed 127 | . . . . . . . . . . 127 Melee 29 | . . . . . . . . . . 29 Projectile 2 | . . . . . . . . . . 2 AOE 96 | . . . . . . . . . . 96 Terrain Rammed . | . . . . . . . . . . . Walls Destroyed . | . . . . . . . . . . . Machines Disabled . | . . . . . . . . . . . Actions | -11 -10 -10 -9 -9 -9 -8 -8 -8 -8 -6 --------- Run | Yrd Mat Min Mat Min Exi Min Mat Sto Rec Fac Total 4725 | 36 224 261 749 869 314 283 24 851 297 817 Wait 728 | . 59 26 190 425 . . . 11 . 17 Move 3475 | 31 123 208 444 417 293 281 24 672 285 697 Hop . | . . . . . . . . . . . Pick Up 15 | . 1 2 . . . . . 8 1 3 Fast Attach 61 | 5 4 4 12 . 1 1 . 24 . 10 Attach 9 | . . . 2 . . . . 2 . 5 Detach 1 | . . . . . . 1 . . . . Swap 15 | . . 2 4 . . . . 6 3 . Drop 46 | . 2 3 2 . 1 . . 26 3 9 Fire 140 | . 7 11 19 25 . . . 51 . 27 Melee 200 | . 28 5 73 . . . . 45 1 48 Ram 3 | . . . 3 . . . . . . . Kick . | . . . . . . . . . . . Crush 12 | . . . . 2 . . . 6 4 . Escape Stasis 1 | . . . . . . . . . . 1 Rewire 19 | . . . . . 19 . . . . . Trap . | . . . . . . . . . . . Miscellaneous . | . . . . . . . . . . . Route ------- -11/Scrapyard -10/Materials -10/Mines -9/Materials (discovered 3 exits: *Mat / *Min x2) -9/Mines -9/Exiles -8/Mines -8/Materials -8/Storage (discovered 2 exits: *Fac / *Rec) -8/Recycling -6/Factory History --------- Turn | Location | Event 16 | -11/Scrapyard | Discovered new exit (range 15) 53 | -11/Scrapyard | Entered Materials 305 | -10/Materials | Core integrity fell below 50% 315 | -10/Materials | Build established: Mutant 384 | -10/Materials | Discovered new exit (range 12) 400 | -10/Materials | Entered Mines 405 | -10/Mines | Learned location of Zion (-6) 405 | -10/Mines | Joined a pair of Derelicts in attacking an 0b10 outpost 533 | -10/Mines | Assembled infested the area 538 | -10/Mines | Assisted by a Guerilla fighting off Assembled 659 | -10/Mines | Core integrity fell below 20% 730 | -10/Mines | Build established: Scavenger-Mutant 785 | -10/Mines | Discovered new exit (range 11) 803 | -10/Mines | Entered Materials 803 | -9/Materials | Evolved 2 slots: Utility x2 1391 | -9/Materials | Lost 5 parts (1p2n1u1w) 1488 | -9/Materials | Build established: Mutant 1498 | -9/Materials | Core integrity fell below 50% 1573 | -9/Materials | Discovered new exit (range 12) 1612 | -9/Materials | Discovered new exit (range 4) 1741 | -9/Materials | Identified exit to Mines 1765 | -9/Materials | Entered Mines 1770 | -9/Mines | Learned Materials garrison access intel 1829 | -9/Mines | Learned location of Storage (-8) 1903 | -9/Mines | Found a hidden stash of uninstalled traps 1986 | -9/Mines | Build established: Scavenger-Mutant 2278 | -9/Mines | Assisted by bots powering up and referring to "LRC-V3" 2307 | -9/Mines | Deemed a non-threat by the Exiles lab entrance 2309 | -9/Mines | Discovered new exit (range 5) 2645 | -9/Mines | Excavation squad dispatched 2645 | -9/Mines | A large section of the Mines collapsed 2936 | -9/Mines | Entered Exiles 2936 | -9/Exiles | Found Exiles lab destroyed 2936 | -9/Exiles | Accompanied by 5 allies 2966 | -9/Exiles | Led the pair of lost Derelicts to a safe place 3405 | -9/Exiles | Discovered new exit (range 14) 3426 | -9/Exiles | Entered Mines 3426 | -8/Mines | Accompanied by 7 allies 3432 | -8/Mines | Build established: Commander-Mutant 3816 | -8/Mines | Discovered new exit (range 9) 3878 | -8/Mines | Entered Materials 3878 | -8/Materials | Accompanied by 4 allies 3878 | -8/Materials | Evolved 2 slots: Utility x2 3878 | -8/Materials | Discovered new exit (range 15) 3879 | -8/Materials | Loaded intel: 1 garrison access location 3886 | -8/Materials | Lost 3 allies 3917 | -8/Materials | Entered Storage 3917 | -8/Storage | Accompanied by 4 allies 3991 | -8/Storage | Lost 4 allies 4290 | -8/Storage | Garrison activated, responded to threat 4325 | -8/Storage | Lost 3 parts (1u2w) 4610 | -8/Storage | Build established: Scavenger-Mutant 4826 | -8/Storage | Discovered new exit (range 15) 5270 | -8/Storage | Met a pair of Derelict thieves 5310 | -8/Storage | Identified exit to Factory 5326 | -8/Storage | Used back door to open Recycling access 5326 | -8/Storage | Discovered new exit (range 4) 5329 | -8/Storage | Identified exit to Recycling 5331 | -8/Storage | Entered Recycling 5331 | -8/Recycling | Accompanied by 2 allies 5769 | -8/Recycling | Discovered new exit (range 15) 5801 | -8/Recycling | Identified exit to Factory 5803 | -8/Recycling | Entered Factory 5803 | -6/Factory | Accompanied by 2 allies 5803 | -6/Factory | Evolved 4 slots: Utility x4 6017 | -6/Factory | Spotted B-75 Beast 6874 | -6/Factory | Crushed by falling debris 6905 | -6/Factory | Crushed by falling debris 6905 | -6/Factory | System corruption reached 10% 6958 | -6/Factory | Lost 7 parts (1n4u2w) 7004 | -6/Factory | Core integrity fell below 50% 7029 | -6/Factory | Core integrity fell below 20% 7034 | -6/Factory | Lost 7 parts (1p1n1u4w) 7083 | -6/Factory | Destroyed by H-66 Slayer with Gauss Rifle Last Messages --------------- Penetrated by Slug. Slug penetrates Wall. Destroyed Shock Rifle. P-60 Hacker Mic. Nuclear Core blasted off. P-60 Hacker destroyed. R-10 Processor collects Gravmag System. Slug penetrates Wall. Penetrated by Slug. R-10 Processor collects Mic. Nuclear Core. #G6BBPXUHMCZZLVZVF7GAD=7Q Penetrated by Slug. Med. Treads destroyed. H-66 Slayer knocked back. P-60 Hacker resets H-66 Slayer, system corruption cleaned. R-10 Processor collects Faulty Cld. Plasma Cannon. R-10 Processor collects Remote Datajack. H-66 Slayer knocked back. Penetrated by Slug. Magnetic Acceleration Cannon destroyed. Penetrated by Slug. Map ----- +----------------------------------------------------+ | ?????????????????????????????????????????????????? | | ?????????????????????????????????????????????????? | | ?????????????????????????????????????????????????? | | ?????????????????????????????????????????????????? | | ?????????????????????????????????????????????????? | | ?????????????????????????????????????????????????? | | ?????????????????????????????????????????????????? | | ?????????????????????????????????????????????????? | | ?????????????????????????????????????????????????? | | ?????????????????????????????????????????????????? | | ?????????????????????????????????????????????????? | | ?????????????????????????????????????????????????? | | ?????????????????????????????????????????????????? | | ????????????????????###????#?????????????????????? | | ???????????????????? ??? #?????????????????????? | | ??????????????????? ?? #?????????????????????? | | ??????????????#????"" ""?? #?????????????????????? | | ??????????????# ?"""" """" #?????????????????????? | | ??????????????# """" """" #?????????????????????? | | ??????????????# """" """" #?????????????????????? | | ??????????????# """" """" #?????????????????????? | | ??????????????# """" """" #?????????????????????? | | ??????????????# """" """" #?????????????????????? | | ??????????????# % #?????????????????????? | | ??????????????# %%p #?????????????????????? | | ??????????????# * R @ #?????????????????????? | | ???????????##########;;/;###?????????????????????? | | ???????????# ! R %h%#????##############??????? | | ???????????# h #????# #??????? | | ???????????# """" #????# #??????? | | ???????????# """"% #????# #??????? | | ???????????# """" #????# """"" #????### | | ???????????# #????# """"" #????? | | ???????????# """" #????# """ #??? ? | | ???????????# """" #????# #???" " | | ???????????# ^ """" #????# """"" #?"?" " | | ???????????# #????# """" # """ | | ???????????# """" #????# """ # " | | ???????????# """" #????# # " | | ???????????# """" #????# #! | | ???????????# ############+############# | | ???????????# """" " | | ???????????# """" T | | ??????????????? """" " | | ??????????????? % | | ????????????? % % | | ?????????????### #####+############## ########### | | ???????????????#????????????????????####?????????? | | ?????????????????????????????????????????????????? | | ?????????????????????????????????????????????????? | +----------------------------------------------------+ Best States ------------- Heat Dissipation 65 Energy Generation 18 Energy Capacity 280 Matter Stores 300 Matter Capacity 300 Sight Range 16 Robot Scan Range 15 Terrain Scan Density 10 Armor Coverage 300 Resistance: EM 25 Evasion (%) 55 Recoil Reduction 2 Matter Filtering 30 Particle Charging 27 Offensive Hacking 10 Item Schematics ----------------- None Robot Schematics ------------------ None Fabricated ------------ Nothing Alien Tech Used ----------------- None Achievements -------------- Part-time Excavator Challenges ------------ None Game ------ Seed CouplerExperimentalMapper Manual? 0 Play Time 00:42:50 Cumulative 54.0 hours Start 2024.07.29 @ 14:13:32 End 2024.07.29 @ 14:54:33 Sessions 1 Manual Loads 0 Difficulty Rogue Special Mode None Game No. 126 Rogue 56 Adventurer 70 Explorer 0 Win Type - Total 0 Types 0/0/0/0/0/0/0/0/0 Lore% 34 Gallery% 38 Achievement% 31 Wizard Run 0 Options --------- Layout 0 ASCII 0 Keyboard 0 Movement Mouse Keybinds 0 Fullscreen 1 Font 24/Smallcaps Map View 76x50 Zoom Use 0% Tactical HUD 0 Map Filters NONE Filters NONE Steam 1 RUN: 5fd274f9-f56b-419e-950a-6071da0454fb